[Event "Titled Tuesday Blitz March 29 Early 2022"]
[White "Mika, Tomasz"]
[Black "Estrada Nieto, Julian"]
[WhiteFideId "1132970"]
[BlackFideId "5101018"]
[WhiteElo "2116"]
[BlackElo "2246"]
[Result "1-0"]
[Round "07"]
[TimeControl "180+1"]
[Date "2022.03.30"]
[WhiteClock "0:00:05"]
[BlackClock "0:00:04"]

1. d4 {[%clk 0:03:00]}  d5 {[%clk 0:02:52]} 2. Nf3 {[%clk 0:03:00]}  Nf6 {[%clk 0:02:51]} 3. Bf4 {[%clk 0:03:00]}  c5 {[%clk 0:02:50]} 4. e3 {[%clk 0:03:00]}  Nc6 {[%clk 0:02:50]} 5. Nbd2 {[%clk 0:02:59]}  e6 {[%clk 0:02:50]} 6. c3 {[%clk 0:02:58]}  h6 {[%clk 0:02:50]} 7. Bd3 {[%clk 0:02:57]}  Bd6 {[%clk 0:02:51]} 8. Bg3 {[%clk 0:02:56]}  O-O {[%clk 0:02:48]} 9. Ne5 {[%clk 0:02:56]}  Bxe5 {[%clk 0:02:40]} 10. dxe5 {[%clk 0:02:55]}  Nd7 {[%clk 0:02:40]} 11. f4 {[%clk 0:02:53]}  c4 {[%clk 0:02:38]} 12. Bc2 {[%clk 0:02:45]}  Qb6 {[%clk 0:02:38]} 13. O-O {[%clk 0:02:33]}  Qxb2 {[%clk 0:02:35]} 14. Rc1 {[%clk 0:02:15]}  Qb6 {[%clk 0:02:33]} 15. Qe2 {[%clk 0:02:07]}  f5 {[%clk 0:02:28]} 16. exf6 {[%clk 0:02:06]}  Nxf6 {[%clk 0:02:27]} 17. Nf3 {[%clk 0:02:00]}  Bd7 {[%clk 0:02:15]} 18. Ne5 {[%clk 0:01:59]}  Nxe5 {[%clk 0:02:05]} 19. fxe5 {[%clk 0:02:00]}  Ne4 {[%clk 0:02:05]} 20. Bxe4 {[%clk 0:01:33]}  dxe4 {[%clk 0:02:05]} 21. h3 {[%clk 0:01:21]}  Qc5 {[%clk 0:01:39]} 22. Kh2 {[%clk 0:01:15]}  Rf5 {[%clk 0:01:28]} 23. Rcd1 {[%clk 0:01:06]}  Ba4 {[%clk 0:01:16]} 24. Rd6 {[%clk 0:00:57]}  Raf8 {[%clk 0:01:03]} 25. Rxf5 {[%clk 0:00:49]}  exf5 {[%clk 0:00:57]} 26. Qd2 {[%clk 0:00:46]}  Kh7 {[%clk 0:00:42]} 27. e6 {[%clk 0:00:41]}  Re8 {[%clk 0:00:38]} 28. Qf2 {[%clk 0:00:28]}  Bc6 {[%clk 0:00:31]} 29. Qf4 {[%clk 0:00:25]}  Re7 {[%clk 0:00:26]} 30. h4 {[%clk 0:00:21]}  Be8 {[%clk 0:00:24]} 31. Qe5 {[%clk 0:00:15]}  Qxe5 {[%clk 0:00:24]} 32. Bxe5 {[%clk 0:00:16]}  Kg6 {[%clk 0:00:22]} 33. Bd4 {[%clk 0:00:14]}  b6 {[%clk 0:00:17]} 34. Kg3 {[%clk 0:00:13]}  h5 {[%clk 0:00:16]} 35. Kf4 {[%clk 0:00:13]}  Ba4 {[%clk 0:00:14]} 36. Ke5 {[%clk 0:00:12]}  f4 {[%clk 0:00:11]} 37. Kxf4 {[%clk 0:00:09]}  Bc2 {[%clk 0:00:11]} 38. Ke5 {[%clk 0:00:08]}  Bd3 {[%clk 0:00:11]} 39. g3 {[%clk 0:00:08]}  Bc2 {[%clk 0:00:09]} 40. Rd7 {[%clk 0:00:08]}  Re8 {[%clk 0:00:04]} 41. Kd6 {[%clk 0:00:06]}  Ba4 {[%clk 0:00:04]} 42. Rxg7+ {[%clk 0:00:06]}  Kf5 {[%clk 0:00:04]} 43. Rg5# {[%clk 0:00:05]} 1-0


[Site "https://www.chess.com"]

[Event "Titled Tuesday Blitz March 29 Early 2022"]
[White "Namitbir Singh Walia"]
[Black "Ianov, Viktor"]
[WhiteFideId "35071068"]
[BlackFideId "14102730"]
[WhiteElo "1565"]
[BlackElo "2161"]
[Result "1/2-1/2"]
[Round "07"]
[TimeControl "180+1"]
[Date "2022.03.30"]
[WhiteClock "0:00:05"]
[BlackClock "0:00:46"]

1. d4 {[%clk 0:03:00]}  d6 {[%clk 0:02:59]} 2. c4 {[%clk 0:03:00]}  g6 {[%clk 0:02:56]} 3. Nf3 {[%clk 0:03:00]}  Bg7 {[%clk 0:02:56]} 4. g3 {[%clk 0:03:00]}  Nf6 {[%clk 0:02:55]} 5. Bg2 {[%clk 0:02:55]}  O-O {[%clk 0:02:55]} 6. O-O {[%clk 0:02:54]}  c6 {[%clk 0:02:55]} 7. Qc2 {[%clk 0:02:53]}  Bf5 {[%clk 0:02:54]} 8. Qb3 {[%clk 0:02:50]}  Qb6 {[%clk 0:02:54]} 9. Nc3 {[%clk 0:02:48]}  Ne4 {[%clk 0:02:53]} 10. Nxe4 {[%clk 0:02:42]}  Bxe4 {[%clk 0:02:52]} 11. Qxb6 {[%clk 0:02:38]}  axb6 {[%clk 0:02:52]} 12. Be3 {[%clk 0:02:39]}  Nd7 {[%clk 0:02:48]} 13. a3 {[%clk 0:02:37]}  c5 {[%clk 0:02:48]} 14. Rfd1 {[%clk 0:02:35]}  Rfc8 {[%clk 0:02:43]} 15. Rac1 {[%clk 0:02:34]}  Ra4 {[%clk 0:02:41]} 16. dxc5 {[%clk 0:02:27]}  bxc5 {[%clk 0:02:32]} 17. Rd2 {[%clk 0:02:17]}  Rb8 {[%clk 0:02:26]} 18. Ne1 {[%clk 0:02:15]}  Bxg2 {[%clk 0:02:25]} 19. Kxg2 {[%clk 0:02:16]}  b5 {[%clk 0:02:24]} 20. cxb5 {[%clk 0:02:15]}  Rxb5 {[%clk 0:02:23]} 21. Rcc2 {[%clk 0:02:08]}  f5 {[%clk 0:02:19]} 22. Nd3 {[%clk 0:01:54]}  Kf7 {[%clk 0:02:14]} 23. f3 {[%clk 0:01:46]}  Rb3 {[%clk 0:02:10]} 24. Bf2 {[%clk 0:01:27]}  Nb6 {[%clk 0:02:08]} 25. Nc1 {[%clk 0:01:20]}  Rb5 {[%clk 0:02:06]} 26. h4 {[%clk 0:00:51]}  Rc4 {[%clk 0:02:03]} 27. b3 {[%clk 0:00:42]}  Rxc2 {[%clk 0:01:59]} 28. Rxc2 {[%clk 0:00:43]}  Ke6 {[%clk 0:01:49]} 29. a4 {[%clk 0:00:33]}  Rb4 {[%clk 0:01:48]} 30. Be1 {[%clk 0:00:33]}  Nd5 {[%clk 0:01:44]} 31. Bxb4 {[%clk 0:00:30]}  Ne3+ {[%clk 0:01:44]} 32. Kf2 {[%clk 0:00:24]}  Nxc2 {[%clk 0:01:44]} 33. Bd2 {[%clk 0:00:24]}  Kd5 {[%clk 0:01:40]} 34. e3 {[%clk 0:00:23]}  e5 {[%clk 0:01:36]} 35. Ke2 {[%clk 0:00:23]}  e4 {[%clk 0:01:36]} 36. fxe4+ {[%clk 0:00:22]}  fxe4 {[%clk 0:01:33]} 37. Na2 {[%clk 0:00:22]}  Na1 {[%clk 0:01:25]} 38. b4 {[%clk 0:00:20]}  cxb4 {[%clk 0:01:17]} 39. Nxb4+ {[%clk 0:00:21]}  Kc4 {[%clk 0:01:16]} 40. Nc6 {[%clk 0:00:18]}  Nb3 {[%clk 0:01:13]} 41. a5 {[%clk 0:00:16]}  Nxd2 {[%clk 0:01:12]} 42. Kxd2 {[%clk 0:00:17]}  Kb5 {[%clk 0:01:12]} 43. Nd8 {[%clk 0:00:13]}  Kxa5 {[%clk 0:01:10]} 44. Nb7+ {[%clk 0:00:14]}  Kb4 {[%clk 0:01:07]} 45. Nxd6 {[%clk 0:00:15]}  Be5 {[%clk 0:01:06]} 46. Nxe4 {[%clk 0:00:15]}  Kc4 {[%clk 0:01:06]} 47. g4 {[%clk 0:00:15]}  Kd5 {[%clk 0:01:03]} 48. Kd3 {[%clk 0:00:15]}  h5 {[%clk 0:01:01]} 49. gxh5 {[%clk 0:00:13]}  gxh5 {[%clk 0:01:01]} 50. Nc3+ {[%clk 0:00:11]}  Ke6 {[%clk 0:01:00]} 51. Ne4 {[%clk 0:00:11]}  Kf5 {[%clk 0:00:59]} 52. Nd2 {[%clk 0:00:05]}  Kg4 {[%clk 0:00:59]} 53. Nc4 {[%clk 0:00:05]}  Bf6 {[%clk 0:00:57]} 54. Nd6 {[%clk 0:00:02]}  Bxh4 {[%clk 0:00:56]} 55. Ke4 {[%clk 0:00:03]}  Bf6 {[%clk 0:00:55]} 56. Nf5 {[%clk 0:00:02]}  Kg5 {[%clk 0:00:53]} 57. Ng3 {[%clk 0:00:02]}  h4 {[%clk 0:00:53]} 58. Nf1 {[%clk 0:00:03]}  Kg4 {[%clk 0:00:53]} 59. Nh2+ {[%clk 0:00:01]}  Kg3 {[%clk 0:00:52]} 60. Nf1+ {[%clk 0:00:02]}  Kf2 {[%clk 0:00:52]} 61. Nd2 {[%clk 0:00:02]}  h3 {[%clk 0:00:51]} 62. Nf3 {[%clk 0:00:03]}  Bh4 {[%clk 0:00:48]} 63. Kf4 {[%clk 0:00:02]}  Bg3+ {[%clk 0:00:48]} 64. Kg4 {[%clk 0:00:03]}  h2 {[%clk 0:00:46]} 65. Nxh2 {[%clk 0:00:03]}  Bxh2 {[%clk 0:00:46]} 66. e4 {[%clk 0:00:04]}  Be5 {[%clk 0:00:46]} 67. Kf5 {[%clk 0:00:04]}  Bc7 {[%clk 0:00:46]} 68. e5 {[%clk 0:00:05]}  Bxe5 {[%clk 0:00:46]} 1/2-1/2


[Site "https://www.chess.com"]

[Event "Titled Tuesday Blitz March 29 Early 2022"]
[White "Odegov, Artem"]
[Black "Zaksaite, Salomeja"]
[WhiteFideId "34183644"]
[BlackFideId "12801496"]
[WhiteElo "2286"]
[BlackElo "1953"]
[Result "0-1"]
[Round "07"]
[TimeControl "180+1"]
[Date "2022.03.30"]
[WhiteClock "0:00:13"]
[BlackClock "0:00:10"]

1. d4 {[%clk 0:03:00]}  Nf6 {[%clk 0:02:51]} 2. c4 {[%clk 0:03:00]}  g6 {[%clk 0:02:51]} 3. Nc3 {[%clk 0:03:00]}  d5 {[%clk 0:02:51]} 4. cxd5 {[%clk 0:03:01]}  Nxd5 {[%clk 0:02:52]} 5. e4 {[%clk 0:03:02]}  Nxc3 {[%clk 0:02:52]} 6. bxc3 {[%clk 0:03:03]}  Bg7 {[%clk 0:02:52]} 7. Bc4 {[%clk 0:03:03]}  c5 {[%clk 0:02:53]} 8. Ne2 {[%clk 0:03:03]}  O-O {[%clk 0:02:48]} 9. O-O {[%clk 0:03:03]}  Nc6 {[%clk 0:02:44]} 10. Be3 {[%clk 0:03:03]}  Na5 {[%clk 0:02:38]} 11. Bd3 {[%clk 0:03:01]}  b6 {[%clk 0:02:38]} 12. dxc5 {[%clk 0:02:52]}  bxc5 {[%clk 0:02:37]} 13. Bxc5 {[%clk 0:02:50]}  Qc7 {[%clk 0:02:34]} 14. Bd4 {[%clk 0:02:46]}  e5 {[%clk 0:02:30]} 15. Be3 {[%clk 0:02:46]}  Nc4 {[%clk 0:02:23]} 16. Bg5 {[%clk 0:02:22]}  Be6 {[%clk 0:02:16]} 17. Rb1 {[%clk 0:02:16]}  f6 {[%clk 0:02:15]} 18. Bc1 {[%clk 0:02:12]}  Rfd8 {[%clk 0:02:14]} 19. Qc2 {[%clk 0:02:10]}  Rac8 {[%clk 0:02:13]} 20. Rd1 {[%clk 0:02:09]}  Bf8 {[%clk 0:02:13]} 21. Kh1 {[%clk 0:02:00]}  Na3 {[%clk 0:02:08]} 22. Bxa3 {[%clk 0:01:59]}  Bxa3 {[%clk 0:02:09]} 23. c4 {[%clk 0:01:58]}  Bc5 {[%clk 0:01:32]} 24. Nc3 {[%clk 0:01:44]}  Kg7 {[%clk 0:01:11]} 25. Nd5 {[%clk 0:01:29]}  Qc6 {[%clk 0:01:04]} 26. f3 {[%clk 0:01:24]}  Bd4 {[%clk 0:01:02]} 27. Qb3 {[%clk 0:01:23]}  Rd7 {[%clk 0:00:56]} 28. h3 {[%clk 0:01:15]}  Qc5 {[%clk 0:00:39]} 29. Qa4 {[%clk 0:01:02]}  Rf7 {[%clk 0:00:36]} 30. Rb5 {[%clk 0:00:57]}  Qc6 {[%clk 0:00:32]} 31. Qb3 {[%clk 0:00:57]}  f5 {[%clk 0:00:26]} 32. Rb1 {[%clk 0:00:54]}  f4 {[%clk 0:00:25]} 33. Rb8 {[%clk 0:00:34]}  Qd7 {[%clk 0:00:24]} 34. Qa3 {[%clk 0:00:16]}  Bxh3 {[%clk 0:00:19]} 35. Rxc8 {[%clk 0:00:15]}  Qxc8 {[%clk 0:00:17]} 36. Ne7 {[%clk 0:00:04]}  Qd7 {[%clk 0:00:06]} 37. Nf5+ {[%clk 0:00:04]}  gxf5 {[%clk 0:00:06]} 38. gxh3 {[%clk 0:00:02]}  fxe4 {[%clk 0:00:06]} 39. Bf1 {[%clk 0:00:02]}  e3 {[%clk 0:00:05]} 40. Qd3 {[%clk 0:00:02]}  Qf5 {[%clk 0:00:04]} 41. Qxf5 {[%clk 0:00:02]}  Rxf5 {[%clk 0:00:04]} 42. Bd3 {[%clk 0:00:03]}  Rf7 {[%clk 0:00:05]} 43. Rg1+ {[%clk 0:00:02]}  Kf6 {[%clk 0:00:05]} 44. h4 {[%clk 0:00:03]}  Rb7 {[%clk 0:00:05]} 45. Rg5 {[%clk 0:00:03]}  Rb2 {[%clk 0:00:04]} 46. Rf5+ {[%clk 0:00:02]}  Ke6 {[%clk 0:00:04]} 47. Rh5 {[%clk 0:00:03]}  e2 {[%clk 0:00:04]} 48. Rh6+ {[%clk 0:00:03]}  Kd7 {[%clk 0:00:04]} 49. Bxe2 {[%clk 0:00:03]}  Rxe2 {[%clk 0:00:03]} 50. Rxh7+ {[%clk 0:00:04]}  Kd6 {[%clk 0:00:03]} 51. Rh8 {[%clk 0:00:05]}  Rf2 {[%clk 0:00:02]} 52. Rd8+ {[%clk 0:00:04]}  Ke7 {[%clk 0:00:02]} 53. h5 {[%clk 0:00:04]}  Rxf3 {[%clk 0:00:02]} 54. Kg2 {[%clk 0:00:05]}  Rg3+ {[%clk 0:00:02]} 55. Kh2 {[%clk 0:00:06]}  Rg5 {[%clk 0:00:02]} 56. h6 {[%clk 0:00:06]}  Rh5+ {[%clk 0:00:03]} 57. Kg2 {[%clk 0:00:07]}  Rxh6 {[%clk 0:00:03]} 58. Ra8 {[%clk 0:00:07]}  Ra6 {[%clk 0:00:03]} 59. Kf3 {[%clk 0:00:07]}  Rxa2 {[%clk 0:00:04]} 60. Ke4 {[%clk 0:00:08]}  Re2+ {[%clk 0:00:03]} 61. Kd5 {[%clk 0:00:08]}  Kf6 {[%clk 0:00:03]} 62. Rf8+ {[%clk 0:00:08]}  Kg5 {[%clk 0:00:04]} 63. c5 {[%clk 0:00:09]}  Rc2 {[%clk 0:00:03]} 64. c6 {[%clk 0:00:09]}  Kg4 {[%clk 0:00:04]} 65. Rf7 {[%clk 0:00:05]}  f3 {[%clk 0:00:04]} 66. c7 {[%clk 0:00:03]}  Kg3 {[%clk 0:00:04]} 67. Ke4 {[%clk 0:00:03]}  f2 {[%clk 0:00:04]} 68. Rg7+ {[%clk 0:00:04]}  Kh2 {[%clk 0:00:04]} 69. Rh7+ {[%clk 0:00:04]}  Kg1 {[%clk 0:00:04]} 70. Rg7+ {[%clk 0:00:05]}  Kf1 {[%clk 0:00:05]} 71. Rf7 {[%clk 0:00:05]}  Ke1 {[%clk 0:00:05]} 72. Kd3 {[%clk 0:00:05]}  Rc3+ {[%clk 0:00:04]} 73. Ke4 {[%clk 0:00:05]}  f1=Q {[%clk 0:00:04]} 74. Rxf1+ {[%clk 0:00:06]}  Kxf1 {[%clk 0:00:05]} 75. c8=Q {[%clk 0:00:07]}  Rxc8 {[%clk 0:00:04]} 76. Kd3 {[%clk 0:00:07]}  Ra8 {[%clk 0:00:05]} 77. Ke4 {[%clk 0:00:08]}  a5 {[%clk 0:00:06]} 78. Kd3 {[%clk 0:00:09]}  a4 {[%clk 0:00:07]} 79. Kc2 {[%clk 0:00:10]}  a3 {[%clk 0:00:08]} 80. Kb3 {[%clk 0:00:09]}  a2 {[%clk 0:00:08]} 81. Kc4 {[%clk 0:00:10]}  a1=Q {[%clk 0:00:09]} 82. Kd5 {[%clk 0:00:11]}  Qa2+ {[%clk 0:00:10]} 83. Ke4 {[%clk 0:00:12]}  Qe2+ {[%clk 0:00:10]} 84. Kd5 {[%clk 0:00:13]}  Rd8+ {[%clk 0:00:10]} 85. Ke6 {[%clk 0:00:13]}  Qg4+ {[%clk 0:00:10]} 86. Kf6 {[%clk 0:00:13]}  e4+ {[%clk 0:00:10]} 87. Kf7 {[%clk 0:00:13]}  Rd7+ {[%clk 0:00:10]} 88. Kf8 {[%clk 0:00:13]}  Qg7+ {[%clk 0:00:10]} 89. Ke8 {[%clk 0:00:13]}  Qf7# {[%clk 0:00:10]} 0-1


[Site "https://www.chess.com"]

[Event "Titled Tuesday Blitz March 29 Early 2022"]
[White "Omelja, Artem"]
[Black "Atakhan, Abtin"]
[WhiteFideId "14119846"]
[BlackFideId "22502203"]
[WhiteElo "2545"]
[BlackElo "2696"]
[Result "0-1"]
[Round "07"]
[TimeControl "180+1"]
[Date "2022.03.30"]
[WhiteClock "0:00:32"]
[BlackClock "0:01:52"]

1. d4 {[%clk 0:03:00]}  Nf6 {[%clk 0:02:59]} 2. c4 {[%clk 0:03:00]}  c5 {[%clk 0:03:00]} 3. d5 {[%clk 0:03:00]}  e6 {[%clk 0:03:00]} 4. Nc3 {[%clk 0:02:59]}  exd5 {[%clk 0:03:01]} 5. cxd5 {[%clk 0:03:00]}  d6 {[%clk 0:03:02]} 6. e4 {[%clk 0:03:00]}  g6 {[%clk 0:03:02]} 7. h3 {[%clk 0:03:00]}  Bg7 {[%clk 0:03:02]} 8. Nf3 {[%clk 0:03:01]}  O-O {[%clk 0:03:03]} 9. Bd3 {[%clk 0:03:01]}  b5 {[%clk 0:03:03]} 10. Nxb5 {[%clk 0:02:52]}  Re8 {[%clk 0:02:55]} 11. Bg5 {[%clk 0:02:04]}  c4 {[%clk 0:02:52]} 12. Be2 {[%clk 0:01:56]}  Qa5+ {[%clk 0:02:51]} 13. Nc3 {[%clk 0:01:55]}  Nxe4 {[%clk 0:02:48]} 14. O-O {[%clk 0:01:55]}  Bxc3 {[%clk 0:02:46]} 15. bxc3 {[%clk 0:01:46]}  Nxc3 {[%clk 0:02:47]} 16. Qc2 {[%clk 0:01:34]}  Nxe2+ {[%clk 0:02:34]} 17. Kh1 {[%clk 0:01:32]}  Qc3 {[%clk 0:02:30]} 18. Qa4 {[%clk 0:01:27]}  Bd7 {[%clk 0:02:28]} 19. Qd1 {[%clk 0:01:21]}  Bxh3 {[%clk 0:02:27]} 20. Re1 {[%clk 0:01:15]}  Nd7 {[%clk 0:02:20]} 21. Rb1 {[%clk 0:01:11]}  Bf5 {[%clk 0:02:12]} 22. Rb7 {[%clk 0:01:04]}  Qd3 {[%clk 0:02:06]} 23. Qa1 {[%clk 0:01:01]}  Ne5 {[%clk 0:02:05]} 24. Nxe5 {[%clk 0:00:58]}  Rxe5 {[%clk 0:02:05]} 25. Bf6 {[%clk 0:00:57]}  Be4 {[%clk 0:01:55]} 26. Kh2 {[%clk 0:00:32]}  Rh5+ {[%clk 0:01:52]} 0-1


[Site "https://www.chess.com"]

[Event "Titled Tuesday Blitz March 29 Early 2022"]
[White "Oro, Luis"]
[Black "Coto Mederos, Michel"]
[WhiteFideId "104094"]
[BlackFideId "3508528"]
[WhiteElo "2361"]
[BlackElo "2427"]
[Result "0-1"]
[Round "07"]
[TimeControl "180+1"]
[Date "2022.03.30"]
[WhiteClock "0:00:42"]
[BlackClock "0:00:04"]

1. e4 {[%clk 0:03:00]}  d5 {[%clk 0:02:56]} 2. exd5 {[%clk 0:02:59]}  Qxd5 {[%clk 0:02:57]} 3. Nc3 {[%clk 0:03:00]}  Qa5 {[%clk 0:02:57]} 4. d4 {[%clk 0:03:00]}  Nf6 {[%clk 0:02:57]} 5. Nf3 {[%clk 0:02:59]}  c6 {[%clk 0:02:57]} 6. h3 {[%clk 0:03:00]}  Bf5 {[%clk 0:02:56]} 7. Bc4 {[%clk 0:03:00]}  e6 {[%clk 0:02:56]} 8. O-O {[%clk 0:03:00]}  Bd6 {[%clk 0:02:46]} 9. Bb3 {[%clk 0:02:59]}  Nbd7 {[%clk 0:02:46]} 10. Qe2 {[%clk 0:02:58]}  O-O {[%clk 0:02:38]} 11. Be3 {[%clk 0:02:54]}  Rad8 {[%clk 0:02:23]} 12. Nd2 {[%clk 0:02:53]}  Qc7 {[%clk 0:02:13]} 13. f4 {[%clk 0:02:43]}  h5 {[%clk 0:01:37]} 14. Nc4 {[%clk 0:02:39]}  Ne4 {[%clk 0:01:21]} 15. Nxe4 {[%clk 0:02:38]}  Bxe4 {[%clk 0:01:21]} 16. Nxd6 {[%clk 0:02:38]}  Qxd6 {[%clk 0:01:21]} 17. c3 {[%clk 0:02:39]}  g6 {[%clk 0:01:10]} 18. Rae1 {[%clk 0:02:32]}  Nf6 {[%clk 0:00:57]} 19. Bd2 {[%clk 0:02:26]}  c5 {[%clk 0:00:52]} 20. Be3 {[%clk 0:02:20]}  b6 {[%clk 0:00:45]} 21. Qf2 {[%clk 0:02:19]}  Bd3 {[%clk 0:00:24]} 22. dxc5 {[%clk 0:02:16]}  Qc6 {[%clk 0:00:22]} 23. Bd4 {[%clk 0:02:14]}  Ne4 {[%clk 0:00:20]} 24. Qh4 {[%clk 0:02:03]}  Bxf1 {[%clk 0:00:19]} 25. Rxf1 {[%clk 0:02:03]}  bxc5 {[%clk 0:00:17]} 26. Be3 {[%clk 0:01:57]}  Rd3 {[%clk 0:00:16]} 27. Qe1 {[%clk 0:01:56]}  Rfd8 {[%clk 0:00:16]} 28. Bc2 {[%clk 0:01:57]}  R3d7 {[%clk 0:00:13]} 29. Bc1 {[%clk 0:01:50]}  f5 {[%clk 0:00:12]} 30. Qe3 {[%clk 0:01:44]}  Kf7 {[%clk 0:00:12]} 31. g4 {[%clk 0:01:43]}  hxg4 {[%clk 0:00:11]} 32. hxg4 {[%clk 0:01:44]}  Rh8 {[%clk 0:00:11]} 33. gxf5 {[%clk 0:01:43]}  gxf5 {[%clk 0:00:10]} 34. Rf3 {[%clk 0:01:42]}  Kf8 {[%clk 0:00:07]} 35. b3 {[%clk 0:01:34]}  Rg7+ {[%clk 0:00:02]} 36. Kf1 {[%clk 0:01:29]}  Rh1+ {[%clk 0:00:02]} 37. Ke2 {[%clk 0:01:29]}  Rh2+ {[%clk 0:00:03]} 38. Kd1 {[%clk 0:01:25]}  Qd6+ {[%clk 0:00:02]} 39. Bd3 {[%clk 0:01:24]}  Ng3 {[%clk 0:00:02]} 40. Rxg3 {[%clk 0:01:18]}  Rh1+ {[%clk 0:00:02]} 41. Kc2 {[%clk 0:01:17]}  Rh2+ {[%clk 0:00:03]} 42. Bd2 {[%clk 0:01:16]}  Rd7 {[%clk 0:00:04]} 43. c4 {[%clk 0:01:12]}  Qe7 {[%clk 0:00:04]} 44. Rf3 {[%clk 0:01:10]}  Qg7 {[%clk 0:00:04]} 45. Rf2 {[%clk 0:01:07]}  Rh1 {[%clk 0:00:05]} 46. Bc3 {[%clk 0:01:05]}  Qg1 {[%clk 0:00:05]} 47. Qxc5+ {[%clk 0:01:02]}  Kf7 {[%clk 0:00:04]} 48. Qe3 {[%clk 0:00:48]}  Qb1+ {[%clk 0:00:03]} 49. Kd2 {[%clk 0:00:42]}  Qd1# {[%clk 0:00:04]} 0-1


[Site "https://www.chess.com"]

[Event "Titled Tuesday Blitz March 29 Early 2022"]
[White "Perez Ponsa, Federico"]
[Black "Vakhlamov, Igor L."]
[WhiteFideId "117927"]
[BlackFideId "24126748"]
[WhiteElo "2672"]
[BlackElo "2401"]
[Result "1-0"]
[Round "07"]
[TimeControl "180+1"]
[Date "2022.03.29"]
[WhiteClock "0:00:30"]
[BlackClock "0:00:07"]

1. d4 {[%clk 0:03:00]}  d5 {[%clk 0:02:59]} 2. c4 {[%clk 0:03:01]}  e6 {[%clk 0:02:59]} 3. Nc3 {[%clk 0:03:01]}  c5 {[%clk 0:02:57]} 4. cxd5 {[%clk 0:03:00]}  cxd4 {[%clk 0:02:57]} 5. Qa4+ {[%clk 0:02:53]}  Bd7 {[%clk 0:02:56]} 6. Qxd4 {[%clk 0:02:53]}  exd5 {[%clk 0:02:56]} 7. Nf3 {[%clk 0:02:32]}  Nc6 {[%clk 0:02:29]} 8. Qxd5 {[%clk 0:02:26]}  Nf6 {[%clk 0:02:30]} 9. Qb3 {[%clk 0:02:20]}  Bc5 {[%clk 0:02:21]} 10. e3 {[%clk 0:02:14]}  O-O {[%clk 0:02:18]} 11. Be2 {[%clk 0:02:14]}  Be6 {[%clk 0:02:18]} 12. Qa4 {[%clk 0:02:12]}  Nb4 {[%clk 0:02:10]} 13. O-O {[%clk 0:02:08]}  a6 {[%clk 0:02:10]} 14. a3 {[%clk 0:02:02]}  b5 {[%clk 0:02:07]} 15. Qd1 {[%clk 0:02:02]}  Nbd5 {[%clk 0:02:07]} 16. Nxd5 {[%clk 0:01:56]}  Nxd5 {[%clk 0:02:08]} 17. Nd4 {[%clk 0:01:49]}  Qf6 {[%clk 0:01:55]} 18. Nxe6 {[%clk 0:01:44]}  fxe6 {[%clk 0:01:56]} 19. Bf3 {[%clk 0:01:39]}  Rfd8 {[%clk 0:01:55]} 20. Qe2 {[%clk 0:01:38]}  Rac8 {[%clk 0:01:53]} 21. Rb1 {[%clk 0:01:35]}  Ba7 {[%clk 0:01:37]} 22. Rd1 {[%clk 0:01:33]}  Rf8 {[%clk 0:01:27]} 23. Bxd5 {[%clk 0:01:08]}  exd5 {[%clk 0:01:28]} 24. Rxd5 {[%clk 0:01:08]}  Rc4 {[%clk 0:00:26]} 25. b3 {[%clk 0:00:51]}  Qg6 {[%clk 0:00:14]} 26. bxc4 {[%clk 0:00:41]}  Qxb1 {[%clk 0:00:14]} 27. Rd1 {[%clk 0:00:42]}  Rc8 {[%clk 0:00:07]} 28. Bb2 {[%clk 0:00:37]}  Qa2 {[%clk 0:00:07]} 29. Qg4 {[%clk 0:00:31]}  Rc7 {[%clk 0:00:07]} 30. Rd8+ {[%clk 0:00:30]}  Kf7 {[%clk 0:00:07]} 31. Qxg7+ {[%clk 0:00:30]}  Ke6 {[%clk 0:00:07]} 32. Qf6# {[%clk 0:00:30]} 1-0


[Site "https://www.chess.com"]

[Event "Titled Tuesday Blitz March 29 Early 2022"]
[White "Postny, Evgeny"]
[Black "Gabdrakhmanov, Azat"]
[WhiteFideId "2804344"]
[BlackFideId "34189197"]
[WhiteElo "2483"]
[BlackElo "2279"]
[Result "1-0"]
[Round "07"]
[TimeControl "180+1"]
[Date "2022.03.29"]
[WhiteClock "0:00:23"]
[BlackClock "0:00:02"]

1. e4 {[%clk 0:02:54]}  c5 {[%clk 0:03:00]} 2. Nf3 {[%clk 0:02:54]}  e6 {[%clk 0:02:59]} 3. d4 {[%clk 0:02:54]}  cxd4 {[%clk 0:03:00]} 4. Nxd4 {[%clk 0:02:55]}  a6 {[%clk 0:03:01]} 5. Bd3 {[%clk 0:02:54]}  Nf6 {[%clk 0:03:01]} 6. O-O {[%clk 0:02:54]}  d6 {[%clk 0:03:01]} 7. c4 {[%clk 0:02:52]}  Be7 {[%clk 0:03:01]} 8. Nc3 {[%clk 0:02:53]}  Qc7 {[%clk 0:03:01]} 9. b3 {[%clk 0:02:52]}  Nbd7 {[%clk 0:03:01]} 10. Bb2 {[%clk 0:02:53]}  b6 {[%clk 0:03:01]} 11. Rc1 {[%clk 0:02:52]}  Bb7 {[%clk 0:03:02]} 12. Qe2 {[%clk 0:02:49]}  O-O {[%clk 0:02:58]} 13. Kh1 {[%clk 0:02:44]}  Rfe8 {[%clk 0:02:53]} 14. Bb1 {[%clk 0:02:43]}  Bf8 {[%clk 0:02:53]} 15. f4 {[%clk 0:02:41]}  e5 {[%clk 0:02:53]} 16. Nf5 {[%clk 0:02:37]}  exf4 {[%clk 0:02:43]} 17. Rxf4 {[%clk 0:02:23]}  g6 {[%clk 0:02:43]} 18. Nd5 {[%clk 0:02:18]}  Nxd5 {[%clk 0:02:26]} 19. cxd5 {[%clk 0:02:19]}  Qd8 {[%clk 0:02:26]} 20. Nd4 {[%clk 0:02:00]}  Bxd5 {[%clk 0:01:27]} 21. Qf2 {[%clk 0:01:58]}  Be6 {[%clk 0:01:07]} 22. Nxe6 {[%clk 0:01:47]}  fxe6 {[%clk 0:01:06]} 23. e5 {[%clk 0:01:38]}  Nxe5 {[%clk 0:00:57]} 24. Bxe5 {[%clk 0:01:27]}  dxe5 {[%clk 0:00:52]} 25. Rf7 {[%clk 0:01:27]}  Bh6 {[%clk 0:00:43]} 26. Rf1 {[%clk 0:01:09]}  Rf8 {[%clk 0:00:25]} 27. Be4 {[%clk 0:01:01]}  Rb8 {[%clk 0:00:17]} 28. Qf3 {[%clk 0:00:53]}  Bf4 {[%clk 0:00:14]} 29. Rxh7 {[%clk 0:00:48]}  Qg5 {[%clk 0:00:09]} 30. Qh3 {[%clk 0:00:38]}  Qf6 {[%clk 0:00:04]} 31. g3 {[%clk 0:00:36]}  Rbd8 {[%clk 0:00:03]} 32. gxf4 {[%clk 0:00:35]}  Rd2 {[%clk 0:00:03]} 33. Rh6 {[%clk 0:00:29]}  Kf7 {[%clk 0:00:02]} 34. Rxg6 {[%clk 0:00:24]}  Qh8 {[%clk 0:00:02]} 35. Qxe6# {[%clk 0:00:23]} 1-0


[Site "https://www.chess.com"]